[Event "German Bundesliga 2023-24"]
[Site "Germany"]
[Date "2024.02.04"]
[Round "8.2"]
[White "Motylev, Alexander"]
[Black "Bartel, Mateusz"]
[Result "1/2-1/2"]
[ECO "C01"]
[WhiteElo "2619"]
[BlackElo "2651"]
[Annotator "TA"]
[PlyCount "70"]
[EventDate "2023.10.20"]
[EventType "team-tourn"]
[EventCountry "GER"]
[SourceTitle "playchess.com"]
[Source "ChessBase"]
[SourceQuality "1"]
[TimeControl "40/6000+30:3000+30"]

{[%evp 12,70,43,49,62,-11,-13,-10,0,-15,-7,-9,0,-10,0,-12,0,0,0,0,0,0,0,0,0,0,0,0,0,0,0,0,0,0,0,0,0,0,0,0,0,0,0,-4,-5,-18,-12,-23,-4,-5,-4,-7,-4,-10,0,0,0,0,0,0,0]} 1. e4 {[%emt 0:00:04]} e6 {[%emt 0:00:05]} 2. d4 {[%emt 0:00:10]} d5 {[%emt 0:00:07]} 3. Nc3 {[%emt 0:00:05]} Bb4 {[%emt 0:00:07]} 4. exd5 {[%emt 0:00:29]} exd5 {[%emt 0:00:07]} 5. Bd3 {[%emt 0:00:14]} Ne7 {[%emt 0:12:40]} 6. Qh5 {[%emt 0:01:01]} c5 {[%emt 0:17:49]} 7. dxc5 $1 {[%emt 0:40:35]} (7. Bxh7 $2 Bf5 (7... cxd4 $2 8. a3 $19) 8. Qd1 Bxh7 $19 (8... Rxh7 $2 9. Nge2 $19)) 7... Nd7 {[%emt 0:00:42]} 8. Nf3 {[%emt 0:18:57] White is more active.} (8. Bxh7 $2 {loses.} Nf6 (8... Bxc5 $2 9. Bg5 $19) (8... Nxc5 $2 9. Nf3 $19) (8... Nf8 $2 9. Bd2 $19) 9. Qd1 Bxc3+ (9... Nxh7 $2 10. Nf3 $19) (9... Rxh7 $2 10. Nge2 $19) 10. bxc3 Nxh7 $19) ({White should try} 8. Be3 $14) 8... Nxc5 $11 {[%emt 0:03:09]} 9. Bb5+ {[%emt 0:00:37]} Bd7 {[%emt 0:01:36]} 10. Ne5 {[%emt 0:01:07][%csl Ge5][%cal Rh5f7] [#]} O-O {[%emt 0:00:15]} 11. Nxd7 {[%emt 0:00:52]} Nxd7 {[%emt 0:00:51]} 12. O-O {[%emt 0:00:31]} Nf6 {[%emt 0:01:10]} 13. Qf3 {[%emt 0:03:00]} Rc8 {[%emt 0:05:27]} 14. Ne2 {[%emt 0:07:54]} Qb6 {[%emt 0:08:13]} ({Much worse is} 14... Rxc2 $6 15. Qb3 Rxc1 16. Raxc1 $16 (16. Rfxc1 Ba5 $16)) 15. Bd3 {[%emt 0:02:41]} Ng6 {[%emt 0:00:06][%cal Be7g6,Bg6e5,Be5d3][%mdl 32]} 16. c3 {[%emt 0:14:28]} Ne5 {[%emt 0:02:40]} 17. Qh3 {[%emt 0:00:36]} Nxd3 {[%emt 0:00:10]} 18. Qxd3 {[%emt 0:00:24]} Bc5 {[%emt 0:00:06]} 19. b4 {[%emt 0:03:24]} Bd6 {[%emt 0:00:20]} 20. Bg5 {[%emt 0:01:11]} Be5 {[%emt 0:04:00]} 21. Bxf6 {[%emt 0:01:06]} Bxf6 {[%emt 0:06:26]} 22. Qxd5 {[%emt 0:01:09]} Rfe8 {[%emt 0:07:28]} 23. Qf3 {[%emt 0:03:06]} Qc6 {[%emt 0:02:49]} 24. Qxc6 {[%emt 0:01:42]} Rxc6 {[%emt 0:00:22]} 25. Rfe1 {[%emt 0:00:17]} Kf8 {[%emt 0:00:05]} 26. Kf1 {[%emt 0:00:33]} Bxc3 {[%emt 0:01:01]} 27. Nxc3 {[%emt 0:00:15]} Rxc3 {[%emt 0:00:03][%mdl 4096] Endgame. KRR-KRR} 28. Rec1 {[%emt 0:04:36]} Rec8 {[%emt 0:01:30]} 29. Rd1 {[%emt 0:01:09]} Rc2 {[%emt 0:03:29]} 30. a3 {[%emt 0:01:04] The position is equal.} g6 {[%emt 0:02:50]} 31. Rd3 {[%emt 0:00:48]} R8c3 {[%emt 0:00:20]} 32. Rad1 {[%emt 0:00:21]} b5 {[%emt 0:03:09]} 33. g3 {[%emt 0:01:23]} a6 {[%emt 0:00:41]} 34. Rd8+ {[%emt 0:00:36]} Kg7 {[%emt 0:00:17]} 35. R1d3 {[%emt 0:00:10]} Rxd3 {[%emt 0:04:44] Weighted Error Value: White=0.05 (flawless) /Black=0.03 (flawless) .  Mistake:       	White=1     	---        OK:         	White=18    	Black=11     Best:        	---       	Black=2} 1/2-1/2

[Event "German Bundesliga 2023-24"]
[Site "Germany"]
[Date "2024.02.04"]
[Round "8.2"]
[White "Kraemer, Martin"]
[Black "Brkic, Ante"]
[Result "1/2-1/2"]
[ECO "B90"]
[WhiteElo "2579"]
[BlackElo "2606"]
[Annotator "RC"]
[PlyCount "51"]
[EventDate "2023.10.20"]
[EventType "team-tourn"]
[EventCountry "GER"]
[SourceTitle "playchess.com"]
[Source "ChessBase"]
[SourceQuality "1"]
[TimeControl "40/6000+30:3000+30"]

1. e4 {[%emt 0:00:03]} c5 {[%emt 0:00:07]} 2. Nf3 {[%emt 0:00:03]} d6 {[%emt 0:00:05]} 3. d4 {[%emt 0:00:03]} cxd4 {[%emt 0:00:06]} 4. Nxd4 {[%emt 0:00:04]} Nf6 {[%emt 0:00:10]} 5. Nc3 {[%emt 0:00:02]} a6 {[%emt 0:00:05]} 6. Be3 {[%emt 0:00:06]} e5 {[%emt 0:00:27]} 7. Nb3 {[%emt 0:00:04]} Be7 {[%emt 0:00:27]} 8. f3 {[%emt 0:00:05]} Be6 {[%emt 0:00:07]} 9. Qd2 {[%emt 0:00:03]} O-O {[%emt 0:00:06]} 10. O-O-O {[%emt 0:00:03]} Nbd7 {[%emt 0:00:05]} 11. g4 {[%emt 0:00:03]} b5 {[%emt 0:00:04]} 12. g5 {[%emt 0:00:24]} Nh5 {[%emt 0:00:20]} 13. Kb1 {[%emt 0:00:36]} Nb6 {[%emt 0:04:10]} 14. Na5 {[%emt 0:00:45]} Rc8 {[%emt 0:07:01]} 15. a3 {[%emt 0:00:21]} g6 {[%emt 0:04:44]} 16. h4 {[%emt 0:04:59]} Ng3 {[%emt 0:03:32]} 17. Rg1 {[%emt 0:00:59]} Nxf1 {[%emt 0:00:11]} 18. Rgxf1 {[%emt 0:00:17]} Na4 {[%emt 0:00:44]} 19. Nxa4 {[%emt 0:16:14]} bxa4 {[%emt 0:00:06]} 20. f4 {[%emt 0:18:18]} exf4 {[%emt 0:21:25]} 21. Rxf4 {[%emt 0:01:20]} Qe8 {[%emt 0:38:11]} 22. Bd4 {[%emt 0:16:15]} Qb5 {[%emt 0:00:10]} 23. Qb4 {[%emt 0:05:18]} Qe2 {[%emt 0:06:31]} 24. Qd2 {[%emt 0:01:27]} Qb5 {[%emt 0:02:23]} 25. Qb4 {[%emt 0:01:00]} Qe2 {[%emt 0:00:17]} 26. Qd2 {[%emt 0:00:18]} 1/2-1/2

[Event "German Bundesliga 2023-24"]
[Site "Germany"]
[Date "2024.02.04"]
[Round "8.3"]
[White "L'Ami, Erwin"]
[Black "Mendonca, Leon Luke"]
[Result "1/2-1/2"]
[ECO "D16"]
[WhiteElo "2627"]
[BlackElo "2614"]
[Annotator "RC"]
[PlyCount "64"]
[EventDate "2023.10.20"]
[EventType "team-tourn"]
[EventCountry "GER"]
[SourceTitle "playchess.com"]
[Source "ChessBase"]
[SourceQuality "1"]
[TimeControl "40/6000+30:3000+30"]

1. d4 {[%emt 0:00:05]} d5 {[%emt 0:02:58]} 2. c4 {[%emt 0:00:29]} c6 {[%emt 0:00:24]} 3. Nf3 {[%emt 0:00:47]} Nf6 {[%emt 0:00:06]} 4. Nc3 {[%emt 0:00:48]} dxc4 {[%emt 0:00:31]} 5. a4 {[%emt 0:00:14]} e6 {[%emt 0:00:09]} 6. e3 {[%emt 0:00:30]} c5 {[%emt 0:00:09]} 7. Bxc4 {[%emt 0:00:10]} Nc6 {[%emt 0:04:48]} 8. O-O {[%emt 0:01:17]} cxd4 {[%emt 0:00:04]} 9. exd4 {[%emt 0:04:07]} Be7 {[%emt 0:00:29]} 10. Qe2 {[%emt 0:02:13]} O-O {[%emt 0:00:46]} 11. Be3 {[%emt 0:00:28]} b6 {[%emt 0:10:56]} 12. Rad1 {[%emt 0:04:30]} Nb4 {[%emt 0:00:21]} 13. Ne5 {[%emt 0:02:09]} Bb7 {[%emt 0:00:16]} 14. f4 {[%emt 0:06:42]} Ne4 {[%emt 0:14:21]} 15. f5 {[%emt 0:28:37]} exf5 {[%emt 0:03:50]} 16. Nxf7 {[%emt 0:16:43]} Rxf7 {[%emt 0:01:10]} 17. Bxf7+ {[%emt 0:00:53]} Kxf7 {[%emt 0:00:07]} 18. Qc4+ {[%emt 0:00:53]} Bd5 {[%emt 0:08:36]} 19. Nxd5 {[%emt 0:03:31]} Nxd5 {[%emt 0:02:03]} 20. Rxf5+ {[%emt 0:00:14]} Nef6 {[%emt 0:00:03]} 21. Rdf1 {[%emt 0:01:16]} Kg8 {[%emt 0:02:01]} 22. Rxf6 {[%emt 0:05:41]} Bxf6 {[%emt 0:00:27]} 23. Rf5 {[%emt 0:00:09]} Rc8 {[%emt 0:00:22]} 24. Qxd5+ {[%emt 0:01:08]} Qxd5 {[%emt 0:00:06]} 25. Rxd5 {[%emt 0:00:07]} Rc4 {[%emt 0:02:15]} 26. a5 {[%emt 0:05:21]} Rb4 {[%emt 0:02:23]} 27. Rd7 {[%emt 0:02:04]} bxa5 {[%emt 0:01:17]} 28. Rxa7 {[%emt 0:00:37]} Bxd4 {[%emt 0:00:23]} 29. Bxd4 {[%emt 0:00:08]} Rxd4 {[%emt 0:00:04]} 30. Rxa5 {[%emt 0:00:07]} Rd1+ {[%emt 0:00:03]} 31. Kf2 {[%emt 0:00:07]} Rd2+ {[%emt 0:00:02]} 32. Kf3 {[%emt 0:00:04]} Rxb2 {[%emt 0:00:03]} 1/2-1/2

[Event "German Bundesliga 2023-24"]
[Site "Germany"]
[Date "2024.02.04"]
[Round "8.3"]
[White "Gustafsson, Jan"]
[Black "Baidetskyi, Valentin"]
[Result "1-0"]
[ECO "C41"]
[WhiteElo "2620"]
[BlackElo "2471"]
[Annotator "ChessBase"]
[PlyCount "47"]
[EventDate "2023.10.20"]
[EventType "team-tourn"]
[EventCountry "GER"]
[SourceTitle "playchess.com"]
[Source "ChessBase"]
[SourceQuality "1"]
[TimeControl "40/6000+30:3000+30"]

1. d4 {[%emt 0:00:06]} d6 {[%emt 0:00:01]} 2. e4 {[%emt 0:00:29]} Nf6 {[%emt 0:00:03]} 3. Nc3 {[%emt 0:00:09]} e5 {[%emt 0:00:02]} 4. Nf3 {[%emt 0:00:12]} Nbd7 {[%emt 0:00:02]} 5. a4 {[%emt 0:00:12]} Be7 {[%emt 0:00:04]} 6. a5 {[%emt 0:00:08]} O-O {[%emt 0:00:26]} 7. Be2 {[%emt 0:00:23]} exd4 {[%emt 0:15:03]} 8. Nxd4 {[%emt 0:01:37]} Re8 {[%emt 0:01:07]} 9. O-O {[%emt 0:01:58]} Bf8 {[%emt 0:00:12]} 10. f3 {[%emt 0:01:21]} c6 {[%emt 0:13:46]} 11. Kh1 {[%emt 0:00:24]} Qc7 {[%emt 0:14:10]} 12. Bf4 {[%emt 0:03:51]} Rb8 {[%emt 0:02:37]} 13. Qd2 {[%emt 0:03:15]} b5 {[%emt 0:01:27]} 14. axb6 {[%emt 0:01:01]} axb6 {[%emt 0:00:08]} 15. Rfd1 {[%emt 0:02:13]} g6 {[%emt 0:04:08]} 16. b4 {[%emt 0:05:23]} b5 {[%emt 0:11:52]} 17. Ndxb5 {[%emt 0:02:46]} cxb5 {[%emt 0:00:05]} 18. Nxb5 {[%emt 0:00:10]} Rxb5 {[%emt 0:07:43]} 19. Bxb5 {[%emt 0:00:29]} Re6 {[%emt 0:00:02]} 20. c4 {[%emt 0:05:28]} Ne5 {[%emt 0:08:05]} 21. c5 {[%emt 0:13:32]} Nh5 {[%emt 0:04:14]} 22. Bxe5 {[%emt 0:03:55]} Rxe5 {[%emt 0:00:23]} 23. Bf1 {[%emt 0:23:15]} Bh6 {[%emt 0:01:25]} 24. Qxh6 {[%emt 0:01:42]} 1-0

[Event "German Bundesliga 2023-24"]
[Site "Germany"]
[Date "2024.02.04"]
[Round "8.3"]
[White "Predojevic, Borki"]
[Black "Krejci, Jan"]
[Result "1/2-1/2"]
[ECO "E95"]
[WhiteElo "2580"]
[BlackElo "2517"]
[Annotator "RC"]
[PlyCount "44"]
[EventDate "2023.10.20"]
[EventType "team-tourn"]
[EventCountry "GER"]
[SourceTitle "playchess.com"]
[Source "ChessBase"]
[SourceQuality "1"]
[TimeControl "40/6000+30:3000+30"]

1. d4 {[%emt 0:00:04]} Nf6 {[%emt 0:00:07]} 2. c4 {[%emt 0:00:10]} d6 {[%emt 0:00:05]} 3. Nf3 {[%emt 0:00:21]} Nbd7 {[%emt 0:00:07]} 4. Nc3 {[%emt 0:00:15]} e5 {[%emt 0:00:06]} 5. e4 {[%emt 0:00:18]} g6 {[%emt 0:00:06]} 6. Be2 {[%emt 0:00:17]} Bg7 {[%emt 0:00:06]} 7. O-O {[%emt 0:00:08]} O-O {[%emt 0:00:05]} 8. Re1 {[%emt 0:00:16]} Re8 {[%emt 0:00:05]} 9. Bf1 {[%emt 0:01:23]} b6 {[%emt 0:00:05]} 10. Rb1 {[%emt 0:05:41]} exd4 {[%emt 0:04:20]} 11. Nxd4 {[%emt 0:01:35]} Bb7 {[%emt 0:00:06]} 12. f3 {[%emt 0:01:20]} d5 {[%emt 0:00:52]} 13. cxd5 {[%emt 0:10:59]} Nxd5 {[%emt 0:00:18]} 14. Nce2 {[%emt 0:00:38]} N5f6 {[%emt 0:06:39]} 15. Bg5 {[%emt 0:09:16]} h6 {[%emt 0:09:45]} 16. Bf4 {[%emt 0:02:33]} Ne5 {[%emt 0:02:00]} 17. b4 {[%emt 0:04:01]} Qe7 {[%emt 0:04:54]} 18. Qb3 {[%emt 0:01:51]} Nfd7 {[%emt 0:04:23]} 19. Nb5 {[%emt 0:12:18]} Nf8 {[%emt 0:01:32]} 20. Nbd4 {[%emt 0:00:20]} Nfd7 {[%emt 0:11:55]} 21. Nb5 {[%emt 0:01:24]} Nf8 {[%emt 0:01:24]} 22. Nbd4 {[%emt 0:00:27]} Nfd7 {[%emt 0:00:53]} 1/2-1/2

[Event "German Bundesliga 2023-24"]
[Site "Germany"]
[Date "2024.02.04"]
[Round "8.3"]
[White "Vogel, Roven"]
[Black "Lagarde, Maxime"]
[Result "0-1"]
[ECO "D37"]
[WhiteElo "2471"]
[BlackElo "2629"]
[Annotator "RC"]
[PlyCount "64"]
[EventDate "2023.10.20"]
[EventType "team-tourn"]
[EventCountry "GER"]
[SourceTitle "playchess.com"]
[Source "ChessBase"]
[SourceQuality "1"]
[TimeControl "40/6000+30:3000+30"]

1. d4 {[%emt 0:00:04]} Nf6 {[%emt 0:00:04]} 2. c4 {[%emt 0:00:08]} e6 {[%emt 0:00:04]} 3. Nf3 {[%emt 0:00:47]} d5 {[%emt 0:00:05]} 4. Nc3 {[%emt 0:00:06]} Be7 {[%emt 0:00:13]} 5. Bf4 {[%emt 0:01:57]} O-O {[%emt 0:00:10]} 6. e3 {[%emt 0:00:06]} Nbd7 {[%emt 0:00:05]} 7. c5 {[%emt 0:02:34]} Ne4 {[%emt 0:00:06]} 8. Nxe4 {[%emt 0:11:36]} dxe4 {[%emt 0:00:05]} 9. Ne5 {[%emt 0:00:10]} Nxe5 {[%emt 0:00:31]} 10. Bxe5 {[%emt 0:00:06]} b6 {[%emt 0:11:29]} 11. Qc2 {[%emt 0:14:57]} bxc5 {[%emt 0:10:58]} 12. Qxe4 {[%emt 0:04:52]} Rb8 {[%emt 0:11:44]} 13. dxc5 {[%emt 0:05:30]} Bxc5 {[%emt 0:01:33]} 14. Bc3 {[%emt 0:06:41]} Qe7 {[%emt 0:02:24]} 15. Bc4 {[%emt 0:16:18]} Bb4 {[%emt 0:07:20]} 16. Qd4 {[%emt 0:03:56]} Qg5 {[%emt 0:02:53]} 17. Bxb4 {[%emt 0:04:07]} Rxb4 {[%emt 0:00:14]} 18. Qc3 {[%emt 0:04:45]} Rb6 {[%emt 0:03:15]} 19. O-O {[%emt 0:00:23]} Bb7 {[%emt 0:01:19]} 20. f3 {[%emt 0:00:13]} Rd8 {[%emt 0:01:44]} 21. Rf2 {[%emt 0:01:27]} h5 {[%emt 0:07:56]} 22. Bf1 {[%emt 0:01:26]} Rd7 {[%emt 0:02:02]} 23. b4 {[%emt 0:04:41]} Ba6 {[%emt 0:05:28]} 24. a4 {[%emt 0:02:57]} Bxf1 {[%emt 0:00:28]} 25. Raxf1 {[%emt 0:00:03]} Rbd6 {[%emt 0:01:06]} 26. e4 {[%emt 0:01:05]} Rd3 {[%emt 0:02:39]} 27. Qc1 {[%emt 0:02:38]} Qe5 {[%emt 0:00:42]} 28. Qb2 {[%emt 0:00:46]} R7d4 {[%emt 0:00:50]} 29. b5 {[%emt 0:06:04]} Qc5 {[%emt 0:02:17]} 30. Qb1 {[%emt 0:08:05]} Rc3 {[%emt 0:02:17]} 31. a5 {[%emt 0:04:01]} Rd2 {[%emt 0:01:14]} 32. Qe1 {[%emt 0:02:22]} Rcc2 {[%emt 0:00:04]} 0-1

[Event "German Bundesliga 2023-24"]
[Site "Germany"]
[Date "2024.02.04"]
[Round "8.4"]
[White "Oleksiyenko, Mykhaylo"]
[Black "Neef, Maximilian"]
[Result "1-0"]
[ECO "C02"]
[WhiteElo "2567"]
[BlackElo "2466"]
[Annotator "ChessBase"]
[PlyCount "67"]
[EventDate "2023.10.20"]
[EventType "team-tourn"]
[EventCountry "GER"]
[SourceTitle "playchess.com"]
[Source "ChessBase"]
[SourceQuality "1"]
[TimeControl "40/6000+30:3000+30"]

1. e4 {[%emt 0:00:03]} e6 {[%emt 0:00:06]} 2. d4 {[%emt 0:00:04]} d5 {[%emt 0:00:05]} 3. e5 {[%emt 0:00:06]} c5 {[%emt 0:00:09]} 4. c3 {[%emt 0:00:03]} Nc6 {[%emt 0:00:10]} 5. Nf3 {[%emt 0:00:03]} Qb6 {[%emt 0:00:09]} 6. a3 {[%emt 0:02:20]} Nh6 {[%emt 0:00:25]} 7. Bd3 {[%emt 0:00:17]} cxd4 {[%emt 0:02:00]} 8. O-O {[%emt 0:00:05]} Nf5 {[%emt 0:03:01]} 9. b4 {[%emt 0:04:05]} Be7 {[%emt 0:04:23]} 10. c4 {[%emt 0:04:43]} dxc4 {[%emt 0:03:25]} 11. Bxc4 {[%emt 0:00:25]} O-O {[%emt 0:05:44]} 12. Nbd2 {[%emt 0:05:56]} Ne3 {[%emt 0:06:07]} 13. fxe3 {[%emt 0:00:17]} dxe3 {[%emt 0:00:07]} 14. Kh1 {[%emt 0:00:08]} Rd8 {[%emt 0:23:23]} 15. Qe1 {[%emt 0:03:03]} exd2 {[%emt 0:02:39]} 16. Bxd2 {[%emt 0:00:02]} Nd4 {[%emt 0:04:29]} 17. Rc1 {[%emt 0:26:29]} Nxf3 {[%emt 0:18:17]} 18. Rxf3 {[%emt 0:00:08]} Bd7 {[%emt 0:00:41]} 19. Qg3 {[%emt 0:23:02]} Qd4 {[%emt 0:06:16]} 20. Bh6 {[%emt 0:03:39]} g6 {[%emt 0:00:24]} 21. Be3 {[%emt 0:04:41]} Qh4 {[%emt 0:04:24]} 22. Qxh4 {[%emt 0:04:34]} Bxh4 {[%emt 0:00:02]} 23. Rcf1 {[%emt 0:00:06]} b5 {[%emt 0:21:10]} 24. Bb3 {[%emt 0:02:47]} Be8 {[%emt 0:02:39]} 25. Bh6 {[%emt 0:02:42]} Rd7 {[%emt 0:01:11]} 26. g3 {[%emt 0:08:59]} Bd8 {[%emt 0:00:29]} 27. Bxe6 {[%emt 0:00:13]} Re7 {[%emt 0:00:56]} 28. Bd5 {[%emt 0:05:23]} Rc8 {[%emt 0:00:09]} 29. e6 {[%emt 0:02:16]} f5 {[%emt 0:00:36]} 30. Rxf5 {[%emt 0:03:21]} gxf5 {[%emt 0:00:38]} 31. Rxf5 {[%emt 0:00:03]} Rg7 {[%emt 0:00:50]} 32. e7+ {[%emt 0:00:08]} Rf7 {[%emt 0:00:05]} 33. Rxf7 {[%emt 0:00:33]} Bxe7 {[%emt 0:01:01]} 34. Rf8# {[%emt 0:00:05]} 1-0

[Event "German Bundesliga 2023-24"]
[Site "Germany"]
[Date "2024.02.04"]
[Round "8.4"]
[White "Ernst, Sipke"]
[Black "Andersen, Mads"]
[Result "1-0"]
[ECO "D36"]
[WhiteElo "2551"]
[BlackElo "2606"]
[Annotator "ChessBase"]
[PlyCount "75"]
[EventDate "2023.10.20"]
[EventType "team-tourn"]
[EventCountry "GER"]
[SourceTitle "playchess.com"]
[Source "ChessBase"]
[SourceQuality "1"]
[TimeControl "40/6000+30:3000+30"]

1. d4 {[%emt 0:00:04]} d5 {[%emt 0:00:12]} 2. c4 {[%emt 0:00:05]} e6 {[%emt 0:00:11]} 3. Nc3 {[%emt 0:00:05]} Nf6 {[%emt 0:00:16]} 4. cxd5 {[%emt 0:00:18]} exd5 {[%emt 0:00:09]} 5. Bg5 {[%emt 0:00:38]} Be7 {[%emt 0:00:36]} 6. e3 {[%emt 0:00:14]} h6 {[%emt 0:01:57]} 7. Bh4 {[%emt 0:00:32]} O-O {[%emt 0:00:54]} 8. Bd3 {[%emt 0:00:15]} c6 {[%emt 0:01:30]} 9. Qc2 {[%emt 0:00:06]} Re8 {[%emt 0:00:57]} 10. Nf3 {[%emt 0:06:14]} Ne4 {[%emt 0:09:39]} 11. Bxe4 {[%emt 0:00:33]} Bxh4 {[%emt 0:02:55]} 12. Bh7+ {[%emt 0:00:11]} Kh8 {[%emt 0:06:17]} 13. g3 {[%emt 0:02:24]} Bf6 {[%emt 0:04:07]} 14. Bf5 {[%emt 0:00:24]} Na6 {[%emt 0:13:10]} 15. O-O {[%emt 0:02:23]} Bxf5 {[%emt 0:13:47]} 16. Qxf5 {[%emt 0:00:05]} g6 {[%emt 0:00:19]} 17. Qc2 {[%emt 0:02:30]} Nc7 {[%emt 0:01:37]} 18. b4 {[%emt 0:03:16]} a6 {[%emt 0:05:23]} 19. a4 {[%emt 0:02:03]} Qd6 {[%emt 0:01:48]} 20. Rab1 {[%emt 0:02:31]} Ne6 {[%emt 0:03:10]} 21. Rfd1 {[%emt 0:02:41]} Kg7 {[%emt 0:02:00]} 22. h4 {[%emt 0:11:59]} h5 {[%emt 0:01:11]} 23. Kg2 {[%emt 0:01:20]} Rec8 {[%emt 0:03:26]} 24. Qb3 {[%emt 0:02:54]} Be7 {[%emt 0:08:22]} 25. e4 {[%emt 0:07:42]} dxe4 {[%emt 0:13:02]} 26. Nxe4 {[%emt 0:01:11]} Qc7 {[%emt 0:00:39]} 27. Nc5 {[%emt 0:18:47]} Nf8 {[%emt 0:06:00]} 28. a5 {[%emt 0:02:03]} Rd8 {[%emt 0:00:54]} 29. Rbc1 {[%emt 0:02:38]} Rab8 {[%emt 0:05:58]} 30. d5 {[%emt 0:06:01]} Bxc5 {[%emt 0:01:17]} 31. Qc3+ {[%emt 0:03:28]} Kg8 {[%emt 0:00:30]} 32. Qxc5 {[%emt 0:00:08]} Rd6 {[%emt 0:00:47]} 33. Ng5 {[%emt 0:04:53]} Nd7 {[%emt 0:01:47]} 34. Qxd6 {[%emt 0:04:50]} Qxd6 {[%emt 0:00:02]} 35. dxc6 {[%emt 0:00:06]} Qf8 {[%emt 0:02:10]} 36. cxd7 {[%emt 0:02:06]} Kg7 {[%emt 0:00:01]} 37. Rc4 {[%emt 0:01:54]} Rd8 {[%emt 0:00:47]} 38. Rf4 {[%emt 0:00:26]} 1-0

[Event "German Bundesliga 2023-24"]
[Site "Germany"]
[Date "2024.02.04"]
[Round "8.4"]
[White "Polak, Tomas"]
[Black "Markus, Robert"]
[Result "1-0"]
[ECO "B40"]
[WhiteElo "2518"]
[BlackElo "2582"]
[Annotator "RC"]
[PlyCount "123"]
[EventDate "2023.10.20"]
[EventType "team-tourn"]
[EventCountry "GER"]
[SourceTitle "playchess.com"]
[Source "ChessBase"]
[SourceQuality "1"]
[TimeControl "40/6000+30:3000+30"]

1. e4 {[%emt 0:00:07]} c5 {[%emt 0:00:04]} 2. Nf3 {[%emt 0:00:09]} e6 {[%emt 0:00:04]} 3. c3 {[%emt 0:01:58]} d5 {[%emt 0:03:39]} 4. e5 {[%emt 0:01:21]} d4 {[%emt 0:00:18]} 5. d3 {[%emt 0:00:24]} Bd7 {[%emt 0:04:02]} 6. g3 {[%emt 0:17:26]} Bc6 {[%emt 0:00:21]} 7. Bg2 {[%emt 0:01:03]} Ne7 {[%emt 0:05:58]} 8. O-O {[%emt 0:10:56]} Nf5 {[%emt 0:00:43]} 9. Qe2 {[%emt 0:04:45]} Be7 {[%emt 0:08:07]} 10. Nbd2 {[%emt 0:03:22]} Nd7 {[%emt 0:08:32]} 11. g4 {[%emt 0:11:20]} Nh6 {[%emt 0:01:58]} 12. h3 {[%emt 0:00:11]} Qc7 {[%emt 0:02:10]} 13. cxd4 {[%emt 0:09:26]} cxd4 {[%emt 0:00:06]} 14. Ne4 {[%emt 0:00:25]} Nxe5 {[%emt 0:06:46]} 15. Nxe5 {[%emt 0:01:08]} Qxe5 {[%emt 0:00:13]} 16. f4 {[%emt 0:00:59]} Qc7 {[%emt 0:03:10]} 17. f5 {[%emt 0:03:45]} Ng8 {[%emt 0:18:25]} 18. fxe6 {[%emt 0:04:17]} fxe6 {[%emt 0:00:52]} 19. Ng5 {[%emt 0:09:42]} Qg3 {[%emt 0:00:05]} 20. Nf7 {[%emt 0:04:35]} Bd5 {[%emt 0:05:08]} 21. Nxh8 {[%emt 0:03:23]} Bd6 {[%emt 0:00:10]} 22. Bf4 {[%emt 0:00:28]} Bxf4 {[%emt 0:01:04]} 23. Rxf4 {[%emt 0:00:07]} Qxf4 {[%emt 0:03:41]} 24. Bxd5 {[%emt 0:00:30]} Qe3+ {[%emt 0:02:19]} 25. Qxe3 {[%emt 0:00:15]} dxe3 {[%emt 0:00:01]} 26. Bxe6 {[%emt 0:09:01]} Ke7 {[%emt 0:00:15]} 27. Bb3 {[%emt 0:01:40]} Nh6 {[%emt 0:00:23]} 28. Re1 {[%emt 0:08:54]} Rxh8 {[%emt 0:00:06]} 29. Rxe3+ {[%emt 0:00:03]} Kd6 {[%emt 0:02:15]} 30. Re6+ {[%emt 0:01:13]} Kd7 {[%emt 0:01:59]} 31. Re3 {[%emt 0:01:22]} Rf8 {[%emt 0:00:10]} 32. Kg2 {[%emt 0:00:20]} Ng8 {[%emt 0:01:05]} 33. Rf3 {[%emt 0:00:32]} Rxf3 {[%emt 0:00:12]} 34. Kxf3 {[%emt 0:00:07]} Ne7 {[%emt 0:01:21]} 35. Ke4 {[%emt 0:01:02]} Kd6 {[%emt 0:02:43]} 36. g5 {[%emt 0:01:30]} a5 {[%emt 0:05:31]} 37. a3 {[%emt 0:00:11]} b5 {[%emt 0:00:52]} 38. Bf7 {[%emt 0:00:21]} b4 {[%emt 0:02:41]} 39. a4 {[%emt 0:00:58]} Nc8 {[%emt 0:01:55]} 40. Bg8 {[%emt 0:00:30]} h6 {[%emt 0:05:50]} 41. gxh6 {[%emt 0:50:19]} gxh6 {[%emt 0:50:08]} 42. b3 {[%emt 0:00:00]} Ne7 {[%emt 0:00:00]} 43. Bf7 {[%emt 0:00:00]} Nc6 {[%emt 0:00:00]} 44. d4 {[%emt 0:00:00]} Ne7 {[%emt 0:00:00]} 45. h4 {[%emt 0:00:00]} Nc6 {[%emt 0:00:00]} 46. h5 {[%emt 0:00:00]} Ne7 {[%emt 0:00:00]} 47. d5 {[%emt 0:00:00]} Nc8 {[%emt 0:00:00]} 48. Be6 {[%emt 0:00:00]} Nb6 {[%emt 0:00:00]} 49. Kd4 {[%emt 0:00:00]} Na8 {[%emt 0:00:00]} 50. Kc4 {[%emt 0:00:00]} Nc7 {[%emt 0:00:00]} 51. Bg8 {[%emt 0:00:00]} Na6 {[%emt 0:00:00]} 52. Kb5 {[%emt 0:00:00]} Nc5 {[%emt 0:00:00]} 53. Kxa5 {[%emt 0:00:00]} Nxb3+ {[%emt 0:00:00]} 54. Kxb4 {[%emt 0:00:00]} Nc5 {[%emt 0:00:00]} 55. Kb5 {[%emt 0:00:00]} Ne4 {[%emt 0:00:00]} 56. Kb6 {[%emt 0:00:00]} Nf6 {[%emt 0:00:00]} 57. Be6 {[%emt 0:00:00]} Nxh5 {[%emt 0:00:00]} 58. a5 {[%emt 0:00:00]} Nf6 {[%emt 0:00:00]} 59. a6 {[%emt 0:00:00]} Ne8 {[%emt 0:00:00]} 60. a7 {[%emt 0:00:00]} Nc7 {[%emt 0:00:00]} 61. Kb7 {[%emt 0:00:00]} h5 {[%emt 0:00:00]} 62. Bh3 {[%emt 0:00:00]} 1-0

[Event "German Bundesliga 2023-24"]
[Site "Germany"]
[Date "2024.02.04"]
[Round "8.4"]
[White "Bromberger, Stefan"]
[Black "Zilka, Stepan"]
[Result "1/2-1/2"]
[ECO "E05"]
[WhiteElo "2476"]
[BlackElo "2599"]
[Annotator "RC"]
[PlyCount "42"]
[EventDate "2023.10.20"]
[EventType "team-tourn"]
[EventCountry "GER"]
[SourceTitle "playchess.com"]
[Source "ChessBase"]
[SourceQuality "1"]
[TimeControl "40/6000+30:3000+30"]

1. d4 {[%emt 0:00:03]} Nf6 {[%emt 0:00:06]} 2. c4 {[%emt 0:00:04]} e6 {[%emt 0:00:05]} 3. Nf3 {[%emt 0:00:03]} d5 {[%emt 0:00:13]} 4. g3 {[%emt 0:00:05]} Be7 {[%emt 0:00:16]} 5. Bg2 {[%emt 0:00:05]} O-O {[%emt 0:00:06]} 6. O-O {[%emt 0:00:04]} dxc4 {[%emt 0:00:04]} 7. Qc2 {[%emt 0:00:04]} a6 {[%emt 0:00:06]} 8. a4 {[%emt 0:00:07]} b6 {[%emt 0:00:26]} 9. Ne5 {[%emt 0:04:10]} Ra7 {[%emt 0:00:20]} 10. Rd1 {[%emt 0:03:43]} Bb7 {[%emt 0:00:39]} 11. e4 {[%emt 0:20:32]} Nc6 {[%emt 0:01:07]} 12. Nxc6 {[%emt 0:00:13]} Bxc6 {[%emt 0:00:06]} 13. Nc3 {[%emt 0:10:23]} Qb8 {[%emt 0:10:19]} 14. Qe2 {[%emt 0:10:17]} Ba8 {[%emt 0:05:37]} 15. Bg5 {[%emt 0:05:36]} c6 {[%emt 0:10:06]} 16. e5 {[%emt 0:20:09]} Nd5 {[%emt 0:00:43]} 17. Bxe7 {[%emt 0:01:11]} Rxe7 {[%emt 0:01:47]} 18. Qxc4 {[%emt 0:01:21]} c5 {[%emt 0:01:38]} 19. Bxd5 {[%emt 0:05:16]} exd5 {[%emt 0:02:36]} 20. Qxa6 {[%emt 0:00:10]} cxd4 {[%emt 0:01:04]} 21. Nb5 {[%emt 0:06:39]} Rxe5 {[%emt 0:02:10]} 1/2-1/2